Workbook

Sheet Instructions
B2: HOW TO USE THE DYNAMIC TOTAL COST OF OWNERSHIP DASHBOARD
B4: All cells highlighted Green are Input cells. Values can only be edited in these cells to observe the dynamic changes in the dashboard on the right.
B6: All cells highlighted Gray are Fixed cells. These values cannot be edited.
B9: CELL NAME | E9: FUNCTION | F9: ACTION REQUIRED
B10: Vehicle Holding Period (Year) | E10: Editable | F10: Use the drop down menu on Cell C5 to choose the Vehicle holding period from 1 to 10 years
B11: Daily Distance Travelled (km) | E11: Editable | F11: Use the arrows on the right to increase/decrease to input Daily Distance Travelled in km
B12: Daily Distance Travelled (mi) | E12: Fixed
B13: Annual Distance Travelled (km) | E13: Fixed
B14: Annual Distance Travelled (mi) | E14: Fixed
B16: Vehicle Purchase Cost | E16: Editable | F16: Add number values to input the purchase cost of a 3-Wheeler
B17: Tax | E17: Editable | F17: Add number values to input Tax levied on the 3-Wheeler
B18: Annual Insurance Cost | E18: Editable | F18: Add number values to input Annual Insurance cost of the 3-Wheeler
B19: Financial Incentive | E19: Editable | F19: Add number values to input Total incentives including FAME subsidy & other miscellaneous incentives
B21: Discount Rate | E21: Editable | F21: Add percentage values to input the present value of future cash flows at the end of holding period
B22: Resale Rate | E22: Editable | F22: Add percentage values to input the resale value of the 3-Wheeler at the end of holding period
B24: Terms of Payment | E24: Editable | F24: Add number values to input the Total number of years of loan repayment
B25: Interest Rate | E25: Editable | F25: Add percentage values to input prevailing interest on 3-Wheeler Loans
B26: Equity | E26: Editable | F26: Add percentage values to input initial equity payment made for the purchase of the 3-Wheeler
B27: Monthly EMI | E27: Fixed
B28: Charging Infrastructure Cost | E28: Editable | F28: Add number values to input the Total cost of Charging Infrastructure
B30: Staff cost per Month | E30: Editable | F30: Add number values to input Total Staff cost incurred in a month
B31: Lithium-Ion Battery Cost | E31: Editable | F31: Add number values to input prevailing cost of Li-Ion battery in USD per kWh
B33: Fuel Cost | E33: Editable | F33: Add number values to input Total cost per unit of Fuel (in associated fuel units)
B34: Capacity of Battery | E34: Editable | F34: Add number values to input capacity of battery for Electric 3-Wheeler in kWh
B35: Number of Battery Replacements | E35: Editable | F35: Add number values to input total number of battery replacements for Electric 3-Wheeler
B36: Mileage | E36: Editable | F36: Add number values to input mileage of different models of 3-Wheelers
B37: Annual Maintenance Cost | E37: Editable | F37: Add number values to input the Annual Maintenance cost of a 3-Wheeler
B40: NOTES
B42: 1. For more details regarding Methodology and TCO calculations, please refer to the research paper. Total Cost of Ownership Analysis of the Impact of Vehicle Usage on the Economic Viability of Electric Vehicles in India, P. Kumar and S. Chakrabarty Transport. Res. Rec., 2020 (1-10)

Sheet 3-Wheelers TCO Dashboard
AQ1: YEAR 10 | AR1: TCO | AX1: DYNAMIC | AY1: TCO
AQ2: e-3W | AR2: =TCO_1!C11 -> 4.206526011 | AX2: e-3W | AY2: =VLOOKUP($C$5,$AX$8:$BB$18,2,0) -> 5.679465655
AQ3: CNG - 3W | AR3: =TCO_1!D11 -> 4.430237384 | AX3: CNG - 3W | AY3: =VLOOKUP($C$5,$AX$8:$BB$18,3,0) -> 5.886439663
AQ4: Petrol - 3W | AR4: =TCO_1!E11 -> 6.436034605 | AX4: Petrol - 3W | AY4: =VLOOKUP($C$5,$AX$8:$BB$18,4,0) -> 8.368541933
B5: Vehicle Holding Period (Year) | C5: 5 | D5: Use Drop down to choose Holding Period | AQ5: Diesel - 3W | AR5: =TCO_1!F11 -> 5.498103962 | AX5: Diesel - 3W | AY5: =VLOOKUP($C$5,$AX$8:$BB$18,5,0) -> 7.207871209
B7: Daily Drive Distance (km) | C7: 110 | E7: (Use Arrows to input Distance)
B8: Daily Drive Distance (mi) | C8: =C7*0.621371 -> 68.35081 | AQ8: Operational Years | AR8: e-3W | AS8: CNG - 3W | AT8: Petrol - 3W | AU8: Diesel - 3W | AY8: e-3W | AZ8: CNG - 3W | BA8: Petrol - 3W | BB8: Diesel - 3W
AQ9: Year 1 | AR9: =TCO_1!C31 -> 13.59985725 | AS9: =TCO_1!C34 -> 12.49458235 | AT9: =TCO_1!C37 -> 15.56420584 | AU9: =TCO_1!C40 -> 14.12860567 | AX9: 1 | AY9: =IF($C$5=AX9,AR9:AU9,) -> 0
B10: Annual Drive Distance (km) | C10: =C7*365 -> 40150 | AQ10: Year 2 | AR10: =TCO_1!D31 -> 8.8572225 | AS10: =TCO_1!D34 -> 8.634134187 | AT10: =TCO_1!D37 -> 11.50766974 | AU10: =TCO_1!D40 -> 10.16389047 | AX10: 2 | AY10: =IF($C$5=AX10,AR10:AU10,) -> 0
B11: Annual Drive Distance (mi) | C11: =C8*365 -> 24948.04565 | AQ11: Year 3 | AR11: =TCO_1!E31 -> 7.177990269 | AS11: =TCO_1!E34 -> 7.219714713 | AT11: =TCO_1!E37 -> 9.947045801 | AU11: =TCO_1!E40 -> 8.671674032 | AX11: 3 | AY11: =IF($C$5=AX11,AR11:AU11,) -> 0
AQ12: Year 4 | AR12: =TCO_1!F31 -> 6.271612969 | AS12: =TCO_1!F34 -> 6.425740386 | AT12: =TCO_1!F37 -> 9.0248539 | AU12: =TCO_1!F40 -> 7.80945705 | AX12: 4 | AY12: =IF($C$5=AX12,AR12:AU12,) -> 0
AQ13: Year 5 | AR13: =TCO_1!G31 -> 5.679465655 | AS13: =TCO_1!G34 -> 5.886439663 | AT13: =TCO_1!G37 -> 8.368541933 | AU13: =TCO_1!G40 -> 7.207871209 | AX13: 5 | AY13: =IF($C$5=AX13,AR13:AU13,) -> 5.679465655 | AZ13: 5.886439663 | BA13: 8.368541933 | BB13: 7.207871209
AQ14: Year 6 | AR14: =TCO_1!H31 -> 5.248282592 | AS14: =TCO_1!H34 -> 5.479392388 | AT14: =TCO_1!H37 -> 7.853125577 | AU14: =TCO_1!H40 -> 6.743135583 | AX14: 6 | AY14: =IF($C$5=AX14,AR14:AU14,) -> 0
C15: INR | AQ15: Year 7 | AR15: =TCO_1!I31 -> 4.912073771 | AS15: =TCO_1!I34 -> 5.151745879 | AT15: =TCO_1!I37 -> 7.424416351 | AU15: =TCO_1!I40 -> 6.361688192 | AX15: 7 | AY15: =IF($C$5=AX15,AR15:AU15,) -> 0
AQ16: Year 8 | AR16: =TCO_1!J31 -> 4.637601659 | AS16: =TCO_1!J34 -> 4.876765905 | AT16: =TCO_1!J37 -> 7.054823704 | AU16: =TCO_1!J40 -> 6.036339838 | AX16: 8 | AY16: =IF($C$5=AX16,AR16:AU16,) -> 0
AQ17: Year 9 | AR17: =TCO_1!K31 -> 4.406204862 | AS17: =TCO_1!K34 -> 4.639351225 | AT17: =TCO_1!K37 -> 6.728618398 | AU17: =TCO_1!K40 -> 5.751655453 | AX17: 9 | AY17: =IF($C$5=AX17,AR17:AU17,) -> 0
AQ18: Year 10 | AR18: =TCO_1!L31 -> 4.206526011 | AS18: =TCO_1!L34 -> 4.430237384 | AT18: =TCO_1!L37 -> 6.436034605 | AU18: =TCO_1!L40 -> 5.498103962 | AX18: 10 | AY18: =IF($C$5=AX18,AR18:AU18,) -> 0
B19: MODEL | C19: e-3W | D19: CNG - 3W | E19: Petrol - 3W | F19: Diesel - 3W
B20: =VLOOKUP($C$15,Currency!B17:C19,2,0) -> Vehicle Purchase Cost (₹) | C20: 366906 | D20: 240000 | E20: 240000 | F20: 240000
B21: =VLOOKUP($C$15,Currency!B21:C23,2,0) -> Tax (₹) | C21: 4000 | D21: 4549 | E21: 9055 | F21: 4638
B22: =VLOOKUP($C$15,Currency!B25:C27,2,0) -> Insurance Cost (₹) | C22: 2500 | D22: 1680 | E22: 2505 | F22: 4418 | AR22: e-3W | AS22: CNG - 3W | AT22: Petrol - 3W | AU22: Diesel - 3W
B23: =VLOOKUP($C$15,Currency!B29:C31,2,0) -> Financial Incentive (₹) | C23: 66523 | AQ23: Total fixed cost | AR23: =TCO_1!C10/TCO_1!C9 -> 1.680401318 | AS23: =TCO_1!D10/TCO_1!D9 -> 1.209421777 | AT23: =TCO_1!E10/TCO_1!E9 -> 1.230197521 | AU23: =TCO_1!F10/TCO_1!F9 -> 1.22043904
B25: Discount Rate (%) | C25: 0.1 | D25: 0.1 | E25: 0.1 | F25: 0.1
B26: Resale Rate (%) | C26: 0.2 | D26: 0.1 | E26: 0.1 | F26: 0.1
B28: =VLOOKUP($C$15,Currency!B45:C47,2,0) -> Financing Component (₹) | AQ28: Total Variable cost | AR28: =TCO_1!L22/TCO_1!C9 -> 2.526124693 | AS28: =TCO_1!L23/TCO_1!D9 -> 3.220815608 | AT28: =TCO_1!L24/TCO_1!E9 -> 5.205837084 | AU28: =TCO_1!L25/TCO_1!F9 -> 4.277664923
B29: Term of Payment (Years) | C29: 7 | D29: 7 | E29: 7 | F29: 7
B30: Interest Rate (%) | C30: 0.14 | D30: 0.08 | E30: 0.08 | F30: 0.08 | AQ30: Total TCO | AR30: =AR23+AR28 -> 4.206526011 | AS30: =AS23+AS28 -> 4.430237384 | AT30: =AT23+AT28 -> 6.436034605 | AU30: =AU23+AU28 -> 5.498103962
B31: Equity (%) | C31: 0.15 | D31: 0.15 | E31: 0.15 | F31: 0.15
B32: =VLOOKUP($C$15,Currency!B49:C51,2,0) -> Monthly EMI (₹) | C32: =Financing!B12 -> 4800.00172 | D32: =Financing!C12 -> 3191.730595 | E32: =Financing!D12 -> 3191.730595 | F32: =Financing!E12 -> 3191.730595
B33: =VLOOKUP($C$15,Currency!$B$53:$C$55,2,0) -> Charging Infrastructure Cost (₹) | C33: 0
AQ35: Cost Components | AR35: e-3W | AS35: CNG - 3W | AT35: Petrol - 3W | AU35: Diesel - 3W
AQ36: Fixed | AR36: =Summary!B19 -> 454757.5944 | AS36: =Summary!C19 -> 310334.37 | AT36: =Summary!D19 -> 315665.37 | AU36: =Summary!E19 -> 313161.37
AQ37: Maintenance | AR37: =Summary!B23 -> 13602 | AS37: =Summary!C23 -> 24010 | AT37: =Summary!D23 -> 20410 | AU37: =Summary!E23 -> 20410
AQ38: Battery Replacement | AR38: =Summary!B24 -> 7370.737 | AS38: =Summary!C24 -> 0 | AT38: =Summary!D24 -> 0 | AU38: =Summary!E24 -> 0
AQ39: Fuel | AR39: =Summary!B25 -> 24090 | AS39: =Summary!C25 -> 66445.42254 | AT39: =Summary!D25 -> 199751.2438 | AU39: =Summary!E25 -> 139102.3622
B40: =VLOOKUP($C$15,Currency!B33:C35,2,0) -> Staff Cost per Month (₹) | C40: 10000
B41: Lithium-Ion Battery Cost (USD/kWh) | C41: 137
AR42: e-3W | AS42: CNG - 3W | AT42: Petrol - 3W | AU42: Diesel - 3W
B43: MODEL | C43: e-3W | D43: CNG - 3W | E43: Petrol - 3W | F43: Diesel - 3W | AQ43: Fixed Cost | AR43: =AR23/AR30 -> 0.3994748431 | AS43: =AS23/AS30 -> 0.2729925446 | AT43: 0.1911421545 | AU43: 0.2219745294
B44: =VLOOKUP($C$15,Currency!B37:C39,2,0) -> Fuel cost (₹/kWh; ₹/kg; ₹/L) | C44: 6 | D44: 47 | E44: 100 | F44: 88 | AQ44: Variable Cost | AR44: =AR28/AR30 -> 0.6005251569 | AS44: =AS28/AS30 -> 0.7270074554 | AT44: 0.8088578455 | AU44: 0.7780254706
B45: Capacity of Battery (kWh) | C45: 7.37
B46: Number of Battery Replacements | C46: 1
B47: Mileage (km/kWh; km/kg; km/L) | C47: 10 | D47: 28.4 | E47: 20.1 | F47: 25.4
B48: =VLOOKUP($C$15,Currency!B41:C43,2,0) -> Annual Maintenance Cost (₹) | C48: 10401 | D48: 21005 | E48: 17405 | F48: 17405
AR51: =SUM(AR43:AR50) -> 1 | AS51: =SUM(AS43:AS50) -> 1 | AT51: =SUM(AT43:AT50) -> 1 | AU51: =SUM(AU43:AU50) -> 1
B53: WORK NOTES
B55: 1. Financial Incentives can be added by referencing Department of Heavy Industry's website
B56: https://fame2.heavyindustry.gov.in/ModelUnderFame.aspx
B58: 2. Financing component
B59: Loan period is assumed to be for a period of 3 years i.e. 36 months
B61: 3. Additional Features like Sensitivity Analysis will be added in the next iteration of the model

Sheet Summary
A1: TRAVEL DETAILS
A2: Number of Vehicle | B2: 1
A3: Life of Vehicle (yrs) | B3: 10
A4: Annual drive distance (KM) | B4: ='3-Wheelers TCO Dashboard'!C10 -> 40150
A5: Total Distance Travel (KM) | B5: =B3*B4 -> 401500
A6: LIB Cost (USD/kWh) | B6: ='3-Wheelers TCO Dashboard'!C41 -> 137
A7: USD to INR | B7: 73
A9: General Inputs | B9: e-3W | C9: CNG-3W | D9: Petrol-3W | E9: Diesel-3W
A10: Discount rate (%) | B10: ='3-Wheelers TCO Dashboard'!C25 -> 0.1 | C10: ='3-Wheelers TCO Dashboard'!D25 -> 0.1 | D10: ='3-Wheelers TCO Dashboard'!E25 -> 0.1 | E10: ='3-Wheelers TCO Dashboard'!F25 -> 0.1
A11: Resale rate (%) | B11: ='3-Wheelers TCO Dashboard'!C26 -> 0.2 | C11: ='3-Wheelers TCO Dashboard'!D26 -> 0.1 | D11: ='3-Wheelers TCO Dashboard'!E26 -> 0.1 | E11: ='3-Wheelers TCO Dashboard'!F26 -> 0.1
A13: Capital Cost | B13: e-3W | C13: CNG-3W | D13: Petrol-3W | E13: Diesel-3W
A14: Total Vehicle Cost (₹) | B14: ='Capital Cost'!B8 -> 521280.5944 | C14: ='Capital Cost'!C8 -> 310334.37 | D14: ='Capital Cost'!D8 -> 315665.37 | E14: ='Capital Cost'!E8 -> 313161.37
A15: Resale Value (₹) | B15: =B14*(B11/100) -> 1042.561189 | C15: =C14*(C11/100) -> 310.33437 | D15: =D14*(D11/100) -> 315.66537 | E15: =E14*(E11/100) -> 313.16137
A16: Total Charging Infrastructure Cost (₹) | B16: ='3-Wheelers TCO Dashboard'!C33 -> 0 | C16: 0 | D16: 0 | E16: 0
A17: Misc. Cost (₹) | B17: 0 | C17: 0 | D17: 0 | E17: 0
A18: Financial Incentive (₹) | B18: ='3-Wheelers TCO Dashboard'!C23 -> 66523 | C18: 0 | D18: 0 | E18: 0
A19: Total Capital Cost (₹) excl. Resale Value | B19: =(B14+B16+B17)-B18 -> 454757.5944 | C19: =(C14+C16+C17)-C18 -> 310334.37 | D19: 315665.37 | E19: 313161.37
A21: Annual Operational Cost | B21: e-3W | C21: CNG-3W | D21: Petrol-3W | E21: Diesel-3W
A22: Staff Cost (₹) | B22: ='Operational Cost'!B4 -> 120000 | C22: ='Operational Cost'!C4 -> 120000 | D22: ='Operational Cost'!D4 -> 120000 | E22: ='Operational Cost'!E4 -> 120000
A23: Maintenance Cost (₹) | B23: ='Operational Cost'!B18 -> 13602 | C23: ='Operational Cost'!C18 -> 24010 | D23: ='Operational Cost'!D18 -> 20410 | E23: ='Operational Cost'!E18 -> 20410
A24: Battery Replacement Cost (₹)* | B24: ='Operational Cost'!B27/B3 -> 7370.737 | C24: ='Operational Cost'!C27/B3 -> 0 | D24: ='Operational Cost'!D27/B3 -> 0
A25: Average Fuel Cost (₹) | B25: ='Operational Cost'!B11 -> 24090 | C25: ='Operational Cost'!C11 -> 66445.42254 | D25: ='Operational Cost'!D11 -> 199751.2438 | E25: ='Operational Cost'!E11 -> 139102.3622
A26: Misc. Cost (₹) | B26: 0 | C26: 0 | D26: 0 | E26: 0
A27: Total Operational Cost (₹) | B27: =(SUM(B22:B26)) -> 165062.737 | C27: =(SUM(C22:C26)) -> 210455.4225 | D27: =(SUM(D22:D26)) -> 340161.2438 | E27: =(SUM(E22:E26)) -> 279512.3622
A29: Total Operational Cost for life of 3W | B29: =B27*$B$3 -> 1650627.37 | C29: =C27*$B$3 -> 2104554.225 | D29: =D27*$B$3 -> 3401612.438 | E29: =E27*$B$3 -> 2795123.622
A30: Average TCO | B30: =TCO_1!C11 -> 4.206526011 | C30: =TCO_1!D11 -> 4.430237384 | D30: =TCO_1!E11 -> 6.436034605 | E30: =TCO_1!F11 -> 5.498103962

Sheet Currency (hidden)
B2: CURRENCY CONVERSION | G2: WEIGHT CONVERSION
B4: USD | C4: INR | D4: Conversion | G4: gal | H4: L
B5: 1 | C5: 74 | D5: =B5*C5 -> 74 | G5: 1 | H5: 3.78
B7: EURO | C7: INR | D7: Conversion | G7: GGE | H7: Kg | J7: NIST Handbook 44 Appendix D (Pg 3-110) as follows: "1 Gasoline [US] gallon equivalent (GGE) means 2.567 kg (5.660 lb) of natural gas"
B8: 1 | C8: 82 | D8: =B8*C8 -> 82 | G8: 1 | H8: 2.567
B16: DROP DOWN | E16: DASHBOARD TITLE | H16: Gallon Calculation
B17: INR | C17: =IF(B17='3-Wheelers TCO Dashboard'!$C$15,"Vehicle Purchase Cost (₹)","") -> Vehicle Purchase Cost (₹) | E17: INR | F17: =IF(E17='3-Wheelers TCO Dashboard'!$C$15,"TCO BY MODELS AT YEAR 10 (₹ / km)","") -> TCO BY MODELS AT YEAR 10 (₹ / km) | H17: USD
B18: USD | C18: =IF(B18='3-Wheelers TCO Dashboard'!C15,"Vehicle Purchase Cost ($)","") ->  | E18: USD | F18: =IF(E18='3-Wheelers TCO Dashboard'!$C$15,"TCO BY MODELS AT YEAR 10 ($ / mi)","") ->  | H18: Gallon Calculation | I18: =IF('[1]Dynamic Ranges for 2W'!$C$17=H17,'[1]Dynamic Ranges for 2W'!F41*3.78,"-") -> -
B19: EURO | C19: =IF(B19='3-Wheelers TCO Dashboard'!$C$15,"Vehicle Purchase Cost (€)","") ->  | E19: EURO | F19: =IF(E19='3-Wheelers TCO Dashboard'!$C$15,"TCO BY MODEL AT YEAR 10 (€ / km)","") -> 
H20: DASHBOARD TITLE 2
B21: INR | C21: =IF(B21='3-Wheelers TCO Dashboard'!$C$15,"Tax (₹)","") -> Tax (₹) | E21: INR | F21: =IF(E21='3-Wheelers TCO Dashboard'!$C$15,"TCO BREAKDOWN BY COST AT YEAR 10 (₹ / km)","") -> TCO BREAKDOWN BY COST AT YEAR 10 (₹ / km) | H21: 1 | I21: =IF('3-Wheelers TCO Dashboard'!C$5=Currency!H21, "TCO AT YEAR 1","") -> 
B22: USD | C22: =IF(B22='3-Wheelers TCO Dashboard'!$C$15,"Tax ($)","") ->  | E22: USD | F22: =IF(E22='3-Wheelers TCO Dashboard'!$C$15,"TCO BREAKDOWN BY COST AT YEAR 10 ($ / mi)","") ->  | H22: 2 | I22: =IF('3-Wheelers TCO Dashboard'!C$5=Currency!H22, "TCO AT YEAR 2","") -> 
B23: EURO | C23: =IF(B23='3-Wheelers TCO Dashboard'!$C$15,"Tax (€)","") ->  | E23: EURO | F23: =IF(E23='3-Wheelers TCO Dashboard'!$C$15,"TCO BREAKDOWN BY COST AT YEAR 10 (€ / km)","") ->  | H23: 3 | I23: =IF('3-Wheelers TCO Dashboard'!C$5=Currency!H23, "TCO AT YEAR 3","") -> 
H24: 4 | I24: =IF('3-Wheelers TCO Dashboard'!C$5=Currency!H24, "TCO AT YEAR 4","") -> 
B25: INR | C25: =IF(B25='3-Wheelers TCO Dashboard'!$C$15,"Insurance Cost (₹)","") -> Insurance Cost (₹) | E25: INR | F25: =IF(E25='3-Wheelers TCO Dashboard'!$C$15,"TOTAL COST OF OWNERSHIP OVER YEARS (₹ / km)","") -> TOTAL COST OF OWNERSHIP OVER YEARS (₹ / km) | H25: 5 | I25: =IF('3-Wheelers TCO Dashboard'!C$5=Currency!H25, "TCO AT YEAR 5","") -> TCO AT YEAR 5
B26: USD | C26: =IF(B26='3-Wheelers TCO Dashboard'!$C$15,"Insurance Cost ($)","") ->  | E26: USD | F26: =IF(E26='3-Wheelers TCO Dashboard'!$C$15,"TOTAL COST OF OWNERSHIP OVER YEARS ($ / mi)","") ->  | H26: 6 | I26: =IF('3-Wheelers TCO Dashboard'!C$5=Currency!H26, "TCO AT YEAR 6","") -> 
B27: EURO | C27: =IF(B27='3-Wheelers TCO Dashboard'!$C$15,"Insurance Cost (€)","") ->  | E27: EURO | F27: =IF(E27='3-Wheelers TCO Dashboard'!$C$15,"TOTAL COST OF OWNERSHIP OVER YEARS (€ / km)","") ->  | H27: 7 | I27: =IF('3-Wheelers TCO Dashboard'!C$5=Currency!H27, "TCO AT YEAR 7","") -> 
H28: 8 | I28: =IF('3-Wheelers TCO Dashboard'!C$5=Currency!H28, "TCO AT YEAR 8","") -> 
B29: INR | C29: =IF(B29='3-Wheelers TCO Dashboard'!$C$15,"Financial Incentive (₹)","") -> Financial Incentive (₹) | H29: 9 | I29: =IF('3-Wheelers TCO Dashboard'!C$5=Currency!H29, "TCO AT YEAR 9","") -> 
B30: USD | C30: =IF(B30='3-Wheelers TCO Dashboard'!$C$15,"Financial Incentive ($)","") ->  | H30: 10 | I30: =IF('3-Wheelers TCO Dashboard'!C$5=Currency!H30, "TCO AT YEAR 10","") -> 
B31: EURO | C31: =IF(B31='3-Wheelers TCO Dashboard'!$C$15,"Financial Incentive (€)","") -> 
B33: INR | C33: =IF(B33='3-Wheelers TCO Dashboard'!$C$15,"Staff Cost per Month (₹)","") -> Staff Cost per Month (₹)
B34: USD | C34: =IF(B34='3-Wheelers TCO Dashboard'!$C$15,"Staff Cost per Month ($)","") -> 
B35: EURO | C35: =IF(B35='3-Wheelers TCO Dashboard'!$C$15,"Staff Cost per Month (€)","") -> 
B37: INR | C37: =IF(B37='3-Wheelers TCO Dashboard'!$C$15,"Fuel cost (₹/kWh; ₹/kg; ₹/L)","") -> Fuel cost (₹/kWh; ₹/kg; ₹/L)
B38: USD | C38: =IF(B38='3-Wheelers TCO Dashboard'!$C$15,"Fuel cost ($/kWh; $/GGE; $/gal)","") -> 
B39: EURO | C39: =IF(B39='3-Wheelers TCO Dashboard'!$C$15,"Fuel cost (€/kWh; €/kg; €/L)","") -> 
B41: INR | C41: =IF(B41='3-Wheelers TCO Dashboard'!$C$15,"Annual Maintenance Cost (₹)","") -> Annual Maintenance Cost (₹)
B42: USD | C42: =IF(B42='3-Wheelers TCO Dashboard'!$C$15,"Annual Maintenance Cost ($)","") -> 
B43: EURO | C43: =IF(B43='3-Wheelers TCO Dashboard'!$C$15,"Annual Maintenance Cost (€)","") -> 
B45: INR | C45: =IF(B45='3-Wheelers TCO Dashboard'!$C$15,"Financing Component (₹)","") -> Financing Component (₹)
B46: USD | C46: =IF(B46='3-Wheelers TCO Dashboard'!$C$15,"Financing Component ($)","") -> 
B47: EURO | C47: =IF(B47='3-Wheelers TCO Dashboard'!$C$15,"Financing Component (€)","") -> 
B49: INR | C49: =IF(B49='3-Wheelers TCO Dashboard'!$C$15,"Monthly EMI (₹)","") -> Monthly EMI (₹)
B50: USD | C50: =IF(B50='3-Wheelers TCO Dashboard'!$C$15,"Monthly EMI ($)","") -> 
B51: EURO | C51: =IF(B51='3-Wheelers TCO Dashboard'!$C$15,"Monthly EMI (€)","") -> 
B53: INR | C53: =IF(B53='3-Wheelers TCO Dashboard'!$C$15,"Charging Infrastructure Cost (₹)","") -> Charging Infrastructure Cost (₹)
B54: USD | C54: =IF(B54='3-Wheelers TCO Dashboard'!$C$15,"Charging Infrastructure Cost ($)","") -> 
B55: EURO | C55: =IF(B55='3-Wheelers TCO Dashboard'!$C$15,"Charging Infrastructure Cost (€)","") -> 

Sheet Capital Cost (hidden)
A1: Vehicle Cost | B1: e-3W | C1: CNG-3W | D1: Petrol-3W | E1: Diesel-3W
A2: Purchase Cost (₹) | B2: =VLOOKUP('3-Wheelers TCO Dashboard'!$C$15,'Capital Cost'!$A$25:$E$27,2,0) -> 366906 | C2: =VLOOKUP('3-Wheelers TCO Dashboard'!$C$15,'Capital Cost'!$A$25:$E$27,3,0) -> 240000 | D2: =VLOOKUP('3-Wheelers TCO Dashboard'!$C$15,'Capital Cost'!$A$25:$E$27,4,0) -> 240000 | E2: =VLOOKUP('3-Wheelers TCO Dashboard'!$C$15,'Capital Cost'!$A$25:$E$27,5,0) -> 240000
A3: Tax (₹) | B3: =VLOOKUP('3-Wheelers TCO Dashboard'!$C$15,'Capital Cost'!$A$30:$E$32,2,0) -> 4000 | C3: =VLOOKUP('3-Wheelers TCO Dashboard'!$C$15,'Capital Cost'!$A$30:$E$32,3,0) -> 4549 | D3: =VLOOKUP('3-Wheelers TCO Dashboard'!$C$15,'Capital Cost'!$A$30:$E$32,4,0) -> 9055 | E3: =VLOOKUP('3-Wheelers TCO Dashboard'!$C$15,'Capital Cost'!$A$30:$E$32,5,0) -> 4638
A4: Insurance (₹) | B4: =VLOOKUP('3-Wheelers TCO Dashboard'!$C$15,'Capital Cost'!$A$35:$E$37,2,0) -> 2500 | C4: =VLOOKUP('3-Wheelers TCO Dashboard'!$C$15,'Capital Cost'!$A$35:$E$37,3,0) -> 1680 | D4: =VLOOKUP('3-Wheelers TCO Dashboard'!$C$15,'Capital Cost'!$A$35:$E$37,4,0) -> 2505 | E4: =VLOOKUP('3-Wheelers TCO Dashboard'!$C$15,'Capital Cost'!$A$35:$E$37,5,0) -> 4418
A5: Financing Component (₹) | B5: =Financing!B17 -> 147874.5944 | C5: =Financing!C17 -> 64105.37 | D5: =Financing!D17 -> 64105.37 | E5: =Financing!E17 -> 64105.37
A6: Total Financial Incentive (₹) | B6: 0 | C6: 0 | D6: 0 | E6: 0
A7: Misc. Cost (₹) | B7: 0 | C7: 0 | D7: 0 | E7: 0
A8: Total Vehicle Cost (₹) | B8: =((B2+B3+B4+B5+B7)-B6) -> 521280.5944 | C8: =((C2+C3+C4+C5+C7)-C6) -> 310334.37 | D8: 315665.37 | E8: 313161.37
A10: Charging Infrastructure Cost | B10: e-3W | C10: CNG-3W | D10: Petrol-3W | E10: Diesel-3W
A11: No. of Slow Charger (SC) | B11: 0 | C11: 0 | D11: 0 | E11: 0
A12: Cost of SC per unit (₹) | B12: 0 | C12: 0 | D12: 0 | E12: 0
A13: Total Cost of SC (₹) | B13: =B11*B12 -> 0 | C13: =C11*C12 -> 0 | D13: =D11*D12 -> 0 | E13: 0
A14: No. of Fact Charger (FC) | B14: 0 | C14: 0 | D14: 0 | E14: 0
A15: Cost of FC per unit (₹) | B15: 0 | C15: 0 | D15: 0 | E15: 0
A16: Total Cost of FC (₹) | B16: =B14*B15 -> 0 | C16: =C14*C15 -> 0 | D16: =D14*D15 -> 0 | E16: 0
A17: Installation cost of Charging Infra (₹) | B17: =(B13+B16)*20/100 -> 0 | C17: =(C13+C16)*20/100 -> 0 | D17: =(D13+D16)*20/100 -> 0 | E17: 0
A18: Total incentive for Charging Infra (₹) | B18: 0 | C18: 0 | D18: 0 | E18: 0
A19: Total Cost of Charging Infra (Rs.) | B19: =(B13+B16+B17)-B18 -> 0 | C19: =(C13+C16+C17)-C18 -> 0 | D19: =(D13+D16+D17)-D18 -> 0 | E19: 0
A22: Per Km Capital Cost | B22: =(B8+B19)/Summary!$B$4 -> 12.98332738 | C22: =(C8+C19)/Summary!$B$4 -> 7.729374097 | D22: =(D8+D19)/Summary!$B$4 -> 7.862151183 | E22: =(E8+E19)/Summary!$B$4 -> 7.799785056
A24: PURCHASE COST
A25: INR | B25: =IF($A$25='3-Wheelers TCO Dashboard'!$C$15,'3-Wheelers TCO Dashboard'!C20,) -> 366906 | C25: =IF($A$25='3-Wheelers TCO Dashboard'!$C$15,'3-Wheelers TCO Dashboard'!D20,) -> 240000 | D25: =IF($A$25='3-Wheelers TCO Dashboard'!$C$15,'3-Wheelers TCO Dashboard'!E20,) -> 240000 | E25: =IF($A$25='3-Wheelers TCO Dashboard'!$C$15,'3-Wheelers TCO Dashboard'!F20,) -> 240000
A26: USD | B26: =IF($A$26='3-Wheelers TCO Dashboard'!$C$15,'3-Wheelers TCO Dashboard'!C20*Currency!$C$5,) -> 0 | C26: =IF($A$26='3-Wheelers TCO Dashboard'!$C$15,'3-Wheelers TCO Dashboard'!D20*Currency!$C$5,) -> 0 | D26: =IF($A$26='3-Wheelers TCO Dashboard'!$C$15,'3-Wheelers TCO Dashboard'!E20*Currency!$C$5,) -> 0 | E26: =IF($A$26='3-Wheelers TCO Dashboard'!$C$15,'3-Wheelers TCO Dashboard'!F20*Currency!$C$5,) -> 0
A27: EURO | B27: =IF($A$27='3-Wheelers TCO Dashboard'!$C$15,'3-Wheelers TCO Dashboard'!C20*Currency!$C$8,) -> 0 | C27: =IF($A$27='3-Wheelers TCO Dashboard'!$C$15,'3-Wheelers TCO Dashboard'!D20*Currency!$C$8,) -> 0 | D27: =IF($A$27='3-Wheelers TCO Dashboard'!$C$15,'3-Wheelers TCO Dashboard'!E20*Currency!$C$8,) -> 0 | E27: =IF($A$27='3-Wheelers TCO Dashboard'!$C$15,'3-Wheelers TCO Dashboard'!F20*Currency!$C$8,) -> 0
A29: TAX
A30: INR | B30: =IF($A$30='3-Wheelers TCO Dashboard'!$C$15,'3-Wheelers TCO Dashboard'!C21,) -> 4000 | C30: =IF($A$30='3-Wheelers TCO Dashboard'!$C$15,'3-Wheelers TCO Dashboard'!D21,) -> 4549 | D30: =IF($A$30='3-Wheelers TCO Dashboard'!$C$15,'3-Wheelers TCO Dashboard'!E21,) -> 9055 | E30: =IF($A$30='3-Wheelers TCO Dashboard'!$C$15,'3-Wheelers TCO Dashboard'!F21,) -> 4638
A31: USD | B31: =IF($A$31='3-Wheelers TCO Dashboard'!$C$15,'3-Wheelers TCO Dashboard'!C21*Currency!$C$5,) -> 0 | C31: =IF($A$31='3-Wheelers TCO Dashboard'!$C$15,'3-Wheelers TCO Dashboard'!D21*Currency!$C$5,) -> 0 | D31: =IF($A$31='3-Wheelers TCO Dashboard'!$C$15,'3-Wheelers TCO Dashboard'!E21*Currency!$C$5,) -> 0 | E31: =IF($A$31='3-Wheelers TCO Dashboard'!$C$15,'3-Wheelers TCO Dashboard'!F21*Currency!$C$5,) -> 0
A32: EURO | B32: =IF($A$32='3-Wheelers TCO Dashboard'!$C$15,'3-Wheelers TCO Dashboard'!C21*Currency!$C$8,) -> 0 | C32: =IF($A$32='3-Wheelers TCO Dashboard'!$C$15,'3-Wheelers TCO Dashboard'!D21*Currency!$C$8,) -> 0 | D32: =IF($A$32='3-Wheelers TCO Dashboard'!$C$15,'3-Wheelers TCO Dashboard'!E21*Currency!$C$8,) -> 0 | E32: =IF($A$32='3-Wheelers TCO Dashboard'!$C$15,'3-Wheelers TCO Dashboard'!F21*Currency!$C$8,) -> 0
A34: INSURANCE
A35: INR | B35: =IF($A$35='3-Wheelers TCO Dashboard'!$C$15,'3-Wheelers TCO Dashboard'!C22,) -> 2500 | C35: =IF($A$35='3-Wheelers TCO Dashboard'!$C$15,'3-Wheelers TCO Dashboard'!D22,) -> 1680 | D35: =IF($A$35='3-Wheelers TCO Dashboard'!$C$15,'3-Wheelers TCO Dashboard'!E22,) -> 2505 | E35: =IF($A$35='3-Wheelers TCO Dashboard'!$C$15,'3-Wheelers TCO Dashboard'!F22,) -> 4418
A36: USD | B36: =IF($A$36='3-Wheelers TCO Dashboard'!$C$15,'3-Wheelers TCO Dashboard'!C22*Currency!$C$5,) -> 0 | C36: =IF($A$36='3-Wheelers TCO Dashboard'!$C$15,'3-Wheelers TCO Dashboard'!D22*Currency!$C$5,) -> 0 | D36: =IF($A$36='3-Wheelers TCO Dashboard'!$C$15,'3-Wheelers TCO Dashboard'!E22*Currency!$C$5,) -> 0 | E36: =IF($A$36='3-Wheelers TCO Dashboard'!$C$15,'3-Wheelers TCO Dashboard'!F22*Currency!$C$5,) -> 0
A37: EURO | B37: =IF($A$37='3-Wheelers TCO Dashboard'!$C$15,'3-Wheelers TCO Dashboard'!C22*Currency!$C$8,) -> 0 | C37: =IF($A$37='3-Wheelers TCO Dashboard'!$C$15,'3-Wheelers TCO Dashboard'!D22*Currency!$C$8,) -> 0 | D37: =IF($A$37='3-Wheelers TCO Dashboard'!$C$15,'3-Wheelers TCO Dashboard'!E22*Currency!$C$8,) -> 0 | E37: =IF($A$37='3-Wheelers TCO Dashboard'!$C$15,'3-Wheelers TCO Dashboard'!F22*Currency!$C$8,) -> 0
A39: INCENTIVE
A40: INR | B40: =IF($A$40='3-Wheelers TCO Dashboard'!$C$15,'3-Wheelers TCO Dashboard'!C23,) -> 66523 | C40: =IF($A$40='3-Wheelers TCO Dashboard'!$C$15,'3-Wheelers TCO Dashboard'!D23,) -> 0 | D40: =IF($A$40='3-Wheelers TCO Dashboard'!$C$15,'3-Wheelers TCO Dashboard'!E23,) -> 0 | E40: =IF($A$40='3-Wheelers TCO Dashboard'!$C$15,'3-Wheelers TCO Dashboard'!F23,) -> 0
A41: USD | B41: =IF($A$41='3-Wheelers TCO Dashboard'!$C$15,'3-Wheelers TCO Dashboard'!C23*Currency!$C$5,) -> 0 | C41: =IF($A$41='3-Wheelers TCO Dashboard'!$C$15,'3-Wheelers TCO Dashboard'!D23*Currency!$C$5,) -> 0 | D41: =IF($A$41='3-Wheelers TCO Dashboard'!$C$15,'3-Wheelers TCO Dashboard'!E23*Currency!$C$5,) -> 0 | E41: =IF($A$41='3-Wheelers TCO Dashboard'!$C$15,'3-Wheelers TCO Dashboard'!F23*Currency!$C$5,) -> 0
A42: EURO | B42: =IF($A$42='3-Wheelers TCO Dashboard'!$C$15,'3-Wheelers TCO Dashboard'!C23*Currency!$C$8,) -> 0 | C42: =IF($A$42='3-Wheelers TCO Dashboard'!$C$15,'3-Wheelers TCO Dashboard'!D23*Currency!$C$8,) -> 0 | D42: =IF($A$42='3-Wheelers TCO Dashboard'!$C$15,'3-Wheelers TCO Dashboard'!E23*Currency!$C$8,) -> 0 | E42: =IF($A$42='3-Wheelers TCO Dashboard'!$C$15,'3-Wheelers TCO Dashboard'!F23*Currency!$C$8,) -> 0

Sheet Financing (hidden)
A1: Vehicle Cost | B1: e-2W (VRLA) | C1: e-2W (LIB_SB) | D1: e-2W (LIB_BB) | E1: Petrol-2W
A2: Total Cost of Bike (₹) | B2: ='3-Wheelers TCO Dashboard'!C20-'3-Wheelers TCO Dashboard'!C23 -> 300383 | C2: ='3-Wheelers TCO Dashboard'!D20 -> 240000 | D2: ='3-Wheelers TCO Dashboard'!E20 -> 240000 | E2: ='3-Wheelers TCO Dashboard'!F20 -> 240000
A3: Share of Operator (%) | B3: =100%-B6 -> 0.85 | C3: =100%-C6 -> 0.85 | D3: 0.85 | E3: 0.85
A4: Share of Operator (₹) | B4: =B3*B2 -> 255325.55 | C4: =C3*C2 -> 204000 | D4: =D3*D2 -> 204000 | E4: =E3*E2 -> 204000
A5: Processing Fees | B5: =IF(B8=0,0,IF(B4*0.5%>500,B4*0.5%,500)) -> 1276.62775 | C5: =IF(C8=0,0,IF(C4*0.5%>500,C4*0.5%,500)) -> 1020 | D5: 1020 | E5: 1020
A6: Equity % | B6: ='3-Wheelers TCO Dashboard'!C31 -> 0.15 | C6: ='3-Wheelers TCO Dashboard'!D31 -> 0.15 | D6: ='3-Wheelers TCO Dashboard'!E31 -> 0.15 | E6: ='3-Wheelers TCO Dashboard'!F31 -> 0.15
A7: Equity (₹) | B7: =(B6*B2) -> 45057.45 | C7: =(C6*C2) -> 36000 | D7: =(D6*D2) -> 36000 | E7: =(E6*E2) -> 36000
A8: Loan amount (₹) | B8: =B4 -> 255325.55 | C8: =C4 -> 204000 | D8: =D4 -> 204000 | E8: =E4 -> 204000
A9: Interest rate (%) | B9: ='3-Wheelers TCO Dashboard'!C30 -> 0.14 | C9: ='3-Wheelers TCO Dashboard'!D30 -> 0.08 | D9: ='3-Wheelers TCO Dashboard'!E30 -> 0.08 | E9: ='3-Wheelers TCO Dashboard'!F30 -> 0.08
A10: Term of payment (yrs) | B10: ='3-Wheelers TCO Dashboard'!C29 -> 7 | C10: ='3-Wheelers TCO Dashboard'!D29 -> 7 | D10: ='3-Wheelers TCO Dashboard'!E29 -> 7 | E10: ='3-Wheelers TCO Dashboard'!F29 -> 7
A11: No of EMI (Yearly) | B11: =B10*12 -> 84 | C11: =C10*12 -> 84 | D11: 84 | E11: 84
A12: Monthly EMI Loan (Rs.) | B12: =((PMT(B9/12,B10*12,-B8))+(B5/B11)) -> 4800.00172 | C12: =((PMT(C9/12,C10*12,-C8))+(C5/C11)) -> 3191.730595 | D12: 3191.730595 | E12: 3191.730595
A13: Total interest paid | B13: =(B12*B10*12)-B8 -> 147874.5944 | C13: =(C12*C10*12)-C8 -> 64105.37 | D13: 64105.37 | E13: 64105.37
A14: Yearly Interest Paid | B14: =B13/B10 -> 21124.94206 | C14: =C13/C10 -> 9157.910001 | D14: =D13/D10 -> 9157.910001 | E14: =E13/E10 -> 9157.910001
A15: EMI per KM (Rs.) | B15: =B14/Summary!$B$4 -> 0.5261504873 | C15: =C14/Summary!$B$4 -> 0.2280924035 | D15: =D14/Summary!$B$4 -> 0.2280924035 | E15: =E14/Summary!$B$4 -> 0.2280924035
A17: Total Interest Paid | B17: =VLOOKUP('3-Wheelers TCO Dashboard'!$C$15,Financing!$A$22:$E$24,2,0) -> 147874.5944 | C17: =VLOOKUP('3-Wheelers TCO Dashboard'!$C$15,Financing!$A$22:$E$24,3,0) -> 64105.37 | D17: =VLOOKUP('3-Wheelers TCO Dashboard'!$C$15,Financing!$A$22:$E$24,4,0) -> 64105.37 | E17: =VLOOKUP('3-Wheelers TCO Dashboard'!$C$15,Financing!$A$22:$E$24,5,0) -> 64105.37
A18: (Used for Dashboard Calc.)
A21: YEARLY INTEREST
A22: INR | B22: =IF($A$22='3-Wheelers TCO Dashboard'!$C$15,Financing!B13,) -> 147874.5944 | C22: =IF($A$22='3-Wheelers TCO Dashboard'!$C$15,Financing!C13,) -> 64105.37 | D22: =IF($A$22='3-Wheelers TCO Dashboard'!$C$15,Financing!D13,) -> 64105.37 | E22: =IF($A$22='3-Wheelers TCO Dashboard'!$C$15,Financing!E13,) -> 64105.37
A23: USD | B23: =IF($A$23='3-Wheelers TCO Dashboard'!$C$15,Financing!B13*Currency!$C$5,) -> 0 | C23: =IF($A$23='3-Wheelers TCO Dashboard'!$C$15,Financing!C13*Currency!$C$5,) -> 0 | D23: =IF($A$23='3-Wheelers TCO Dashboard'!$C$15,Financing!D13*Currency!$C$5,) -> 0 | E23: =IF($A$23='3-Wheelers TCO Dashboard'!$C$15,Financing!E13*Currency!$C$5,) -> 0
A24: EURO | B24: =IF($A$24='3-Wheelers TCO Dashboard'!$C$15,Financing!B13*Currency!$C$8,) -> 0 | C24: =IF($A$24='3-Wheelers TCO Dashboard'!$C$15,Financing!C13*Currency!$C$8,) -> 0 | D24: =IF($A$24='3-Wheelers TCO Dashboard'!$C$15,Financing!D13*Currency!$C$8,) -> 0 | E24: =IF($A$24='3-Wheelers TCO Dashboard'!$C$15,Financing!E13*Currency!$C$8,) -> 0

Sheet Operational Cost (hidden)
A1: Staff cost | B1: e-3W | C1: CNG-3W | D1: Petrol-3W | E1: Diesel-3W
A2: Staff Cost (₹ / Month) | B2: =VLOOKUP('3-Wheelers TCO Dashboard'!$C$15,'Operational Cost'!$A$35:$B$37,2,0) -> 10000 | C2: =VLOOKUP('3-Wheelers TCO Dashboard'!$C$15,'Operational Cost'!$A$35:$B$37,2,0) -> 10000 | D2: =VLOOKUP('3-Wheelers TCO Dashboard'!$C$15,'Operational Cost'!$A$35:$B$37,2,0) -> 10000 | E2: =VLOOKUP('3-Wheelers TCO Dashboard'!$C$15,'Operational Cost'!$A$35:$B$37,2,0) -> 10000
A3: Other Support staff cost (₹ / Month) | B3: 0 | C3: 0 | D3: 0 | E3: 0
A4: Total Annual Staff Cost (₹) | B4: =((B2+B3)*12) -> 120000 | C4: =((C2+C3)*12) -> 120000 | D4: 120000 | E4: 120000
A5: Per km Staff Cost | B5: =B4/Summary!$B$4 -> 2.98879203 | C5: =C4/Summary!$B$4 -> 2.98879203 | D5: =D4/Summary!$B$4 -> 2.98879203 | E5: =E4/Summary!$B$4 -> 2.98879203
A7: Average Fuel Cost | B7: e-3W | C7: CNG-3W | D7: Petrol-3W | E7: Diesel-3W
A8: Fuel cost (₹/kWh; ₹/kg; ₹/L) | B8: =VLOOKUP('3-Wheelers TCO Dashboard'!$C$15,'Operational Cost'!$A$45:$E$47,2,0) -> 6 | C8: =VLOOKUP('3-Wheelers TCO Dashboard'!$C$15,'Operational Cost'!$A$45:$E$47,3,0) -> 47 | D8: =VLOOKUP('3-Wheelers TCO Dashboard'!$C$15,'Operational Cost'!$A$45:$E$47,4,0) -> 100 | E8: =VLOOKUP('3-Wheelers TCO Dashboard'!$C$15,'Operational Cost'!$A$45:$E$47,5,0) -> 88
A9: Mileage (km/kWh; km/kg; km/L) | B9: ='3-Wheelers TCO Dashboard'!C47 -> 10 | C9: ='3-Wheelers TCO Dashboard'!D47 -> 28.4 | D9: ='3-Wheelers TCO Dashboard'!E47 -> 20.1 | E9: ='3-Wheelers TCO Dashboard'!F47 -> 25.4
A10: Annual fuel consumption (kWh; L) | B10: =Summary!B4/B9 -> 4015 | C10: =Summary!B4/C9 -> 1413.732394 | D10: =Summary!B4/D9 -> 1997.512438 | E10: =Summary!$B$4/E9 -> 1580.708661
A11: Total Annual Fuel Cost ( ₹ ) | B11: =(B10*B8) -> 24090 | C11: =(C10*C8) -> 66445.42254 | D11: =(D10*D8) -> 199751.2438 | E11: =(E10*E8) -> 139102.3622
A12: Per km Fuel Cost | B12: =B11/Summary!$B$4 -> 0.6 | C12: =C11/Summary!$B$4 -> 1.654929577 | D12: =D11/Summary!$B$4 -> 4.975124378 | E12: =E11/Summary!$B$4 -> 3.464566929
A14: Maintenance Cost | B14: e-3W | C14: CNG-3W | D14: Petrol-3W | E14: Diesel-3W
A15: Annual Maintenance Cost (₹) | B15: =VLOOKUP('3-Wheelers TCO Dashboard'!$C$15,'Operational Cost'!$A$40:$E$42,2,0) -> 10401 | C15: =VLOOKUP('3-Wheelers TCO Dashboard'!$C$15,'Operational Cost'!$A$40:$E$42,3,0) -> 21005 | D15: =VLOOKUP('3-Wheelers TCO Dashboard'!$C$15,'Operational Cost'!$A$40:$E$42,4,0) -> 17405 | E15: =VLOOKUP('3-Wheelers TCO Dashboard'!$C$15,'Operational Cost'!$A$40:$E$42,5,0) -> 17405
A16: Other Consumables (₹) | B16: 0 | C16: 0 | D16: 0 | E16: 0
A17: Other Misc. Cost (₹) | B17: 3201 | C17: 3005 | D17: 3005 | E17: 3005
A18: Total Annual Maintenance cost (₹) | B18: =(SUM(B15:B17)) -> 13602 | C18: =(SUM(C15:C17)) -> 24010 | D18: =(SUM(D15:D17)) -> 20410 | E18: =(SUM(E15:E17)) -> 20410
A19: Per km Maintenance Cost | B19: =B18/Summary!$B$4 -> 0.3387795766 | C19: =C18/Summary!$B$4 -> 0.598007472 | D19: =D18/Summary!$B$4 -> 0.5083437111 | E19: =E18/Summary!$B$4 -> 0.5083437111
A21: Battery Replacement Cost | B21: e-3W | C21: CNG-3W | D21: Petrol-3W | E21: Diesel-3W
A22: Number of battery replacements | B22: ='3-Wheelers TCO Dashboard'!C46 -> 1 | C22: 0 | D22: 0 | E22: 0
A23: Capacity of battery (kWh) | B23: ='3-Wheelers TCO Dashboard'!C45 -> 7.37 | C23: 0 | D23: 0 | E23: 0
A24: Battery Cost (₹ / kWh) | B24: =Summary!B6*Summary!B7 -> 10001 | C24: 0 | D24: 0
A25: Total battery Cost (₹) | B25: =B24*B23 -> 73707.37 | C25: =C24*C23 -> 0 | D25: =D24*D23 -> 0 | E25: 0
A26: Battery replacement Charge (₹) | B26: 0 | C26: 0 | D26: 0 | E26: 0
A27: Total battery replacement cost (₹) | B27: =((B25+B26)*B22) -> 73707.37 | C27: =((C25+C26)*C22) -> 0 | D27: =((D25+D26)*D22) -> 0 | E27: 0
A28: Annual Battery Replacement Cost | B28: =B27/Summary!B3 -> 7370.737 | C28: =C27/Summary!B3 -> 0 | D28: =D27/Summary!B3 -> 0
A29: Per Km Battery Replacement Cost | B29: =B27/Summary!$B$5 -> 0.18358 | C29: =C27/Summary!$B$5 -> 0 | D29: =D27/Summary!$B$5 -> 0 | E29: =E27/Summary!$B$5 -> 0
A31: Total Operational Cost | B31: =B27+B18+B11+B4 -> 231399.37 | C31: =C27+C18+C11+C4 -> 210455.4225 | D31: =D27+D18+D11+D4 -> 340161.2438 | E31: =E27+E18+E11+E4 -> 279512.3622
A32: Per Km Operational Cost | B32: =B29+B19+B12+B5 -> 4.111151606 | C32: =C29+C19+C12+C5 -> 5.241729079 | D32: =D29+D19+D12+D5 -> 8.472260119 | E32: =E29+E19+E12+E5 -> 6.96170267
A34: STAFF COST
A35: INR | B35: =IF(A35='3-Wheelers TCO Dashboard'!$C$15,'3-Wheelers TCO Dashboard'!C40,) -> 10000
A36: USD | B36: =IF(A36='3-Wheelers TCO Dashboard'!$C$15,'3-Wheelers TCO Dashboard'!C40*Currency!C5,) -> 0
A37: EURO | B37: =IF(A37='3-Wheelers TCO Dashboard'!$C$15,'3-Wheelers TCO Dashboard'!C40*Currency!C8,) -> 0
A39: ANNUAL MAINTENANCE COST
A40: INR | B40: =IF($A$40='3-Wheelers TCO Dashboard'!$C$15,'3-Wheelers TCO Dashboard'!C48,) -> 10401 | C40: =IF($A$40='3-Wheelers TCO Dashboard'!$C$15,'3-Wheelers TCO Dashboard'!D48,) -> 21005 | D40: =IF($A$40='3-Wheelers TCO Dashboard'!$C$15,'3-Wheelers TCO Dashboard'!E48,) -> 17405 | E40: =IF($A$40='3-Wheelers TCO Dashboard'!$C$15,'3-Wheelers TCO Dashboard'!F48,) -> 17405
A41: USD | B41: =IF($A$41='3-Wheelers TCO Dashboard'!$C$15,'3-Wheelers TCO Dashboard'!C48*Currency!$C$5,) -> 0 | C41: =IF($A$41='3-Wheelers TCO Dashboard'!$C$15,'3-Wheelers TCO Dashboard'!D48*Currency!$C$5,) -> 0 | D41: =IF($A$41='3-Wheelers TCO Dashboard'!$C$15,'3-Wheelers TCO Dashboard'!E48*Currency!$C$5,) -> 0 | E41: =IF($A$41='3-Wheelers TCO Dashboard'!$C$15,'3-Wheelers TCO Dashboard'!F48*Currency!$C$5,) -> 0
A42: EURO | B42: =IF($A$42='3-Wheelers TCO Dashboard'!$C$15,'3-Wheelers TCO Dashboard'!C48*Currency!$C$8,) -> 0 | C42: =IF($A$42='3-Wheelers TCO Dashboard'!$C$15,'3-Wheelers TCO Dashboard'!D48*Currency!$C$8,) -> 0 | D42: =IF($A$42='3-Wheelers TCO Dashboard'!$C$15,'3-Wheelers TCO Dashboard'!E48*Currency!$C$8,) -> 0 | E42: =IF($A$42='3-Wheelers TCO Dashboard'!$C$15,'3-Wheelers TCO Dashboard'!F48*Currency!$C$8,) -> 0
A44: AVERAGE FUEL COST
A45: INR | B45: =IF($A$45='3-Wheelers TCO Dashboard'!$C$15,'3-Wheelers TCO Dashboard'!C44,) -> 6 | C45: =IF($A$45='3-Wheelers TCO Dashboard'!$C$15,'3-Wheelers TCO Dashboard'!D44,) -> 47 | D45: =IF($A$45='3-Wheelers TCO Dashboard'!$C$15,'3-Wheelers TCO Dashboard'!E44,) -> 100 | E45: =IF($A$45='3-Wheelers TCO Dashboard'!$C$15,'3-Wheelers TCO Dashboard'!F44,) -> 88
A46: USD | B46: =IF($A$46='3-Wheelers TCO Dashboard'!$C$15,'3-Wheelers TCO Dashboard'!C44*Currency!C5,) -> 0 | C46: =IF($A$46='3-Wheelers TCO Dashboard'!$C$15,'3-Wheelers TCO Dashboard'!D44*Currency!C5/2.567,) -> 0 | D46: =IF($A$46='3-Wheelers TCO Dashboard'!$C$15,'3-Wheelers TCO Dashboard'!E44*Currency!C5/3.78,) -> 0 | E46: =IF($A$46='3-Wheelers TCO Dashboard'!$C$15,'3-Wheelers TCO Dashboard'!F44*Currency!C5/3.78,) -> 0
A47: EURO

Sheet TCO_1 (hidden)
A1: Parameter | B1: Unit | C1: e-3W | D1: CNG-3W | E1: Petrol-3W | F1: Diesel-3W
A2: Discount rate value | B2: - | C2: =Summary!B10 -> 0.1 | D2: =Summary!C10 -> 0.1 | E2: =Summary!D10 -> 0.1 | F2: =Summary!E10 -> 0.1
A3: Resale rate value | B3: - | C3: =Summary!B11 -> 0.2 | D3: =Summary!C11 -> 0.1 | E3: =Summary!D11 -> 0.1 | F3: =Summary!E11 -> 0.1
A4: Capital recovery factor (CRF)_N | B4: - | C4: =C2*(1+C2)^Summary!B3 -> 0.259374246 | D4: =D2*(1+D2)^Summary!B3 -> 0.259374246 | E4: =E2*(1+E2)^Summary!B3 -> 0.259374246 | F4: =F2*(1+F2)^Summary!B3 -> 0.259374246
A5: Capital recovery factor (CRF)_D | B5: - | C5: =((1+C2)^Summary!B3)-1 -> 1.59374246 | D5: =(1+D2)^Summary!B3-1 -> 1.59374246 | E5: =(1+E2)^Summary!B3-1 -> 1.59374246 | F5: =(1+F2)^Summary!B3-1 -> 1.59374246
A6: CRF | B6: - | C6: =C4/C5 -> 0.1627453949 | D6: =D4/D5 -> 0.1627453949 | E6: =E4/E5 -> 0.1627453949 | F6: =F4/F5 -> 0.1627453949
A7: Present value factor (PVF) | B7: - | C7: =1/(1+C2)^10 -> 0.3855432894 | D7: =1/(1+D2)^Summary!B3 -> 0.3855432894 | E7: =1/(1+E2)^Summary!B3 -> 0.3855432894 | F7: =1/(1+F2)^Summary!B3 -> 0.3855432894
A8: Residual value (RV) | B8: ₹ | C8: =Summary!B14*C3 -> 104256.1189 | D8: =Summary!C14*D3 -> 31033.437 | E8: =Summary!D14*E3 -> 31566.537 | F8: =Summary!E14*F3 -> 31316.137
A9: Annual Travel Distance | B9: km | C9: =Summary!$B$4 -> 40150 | D9: =Summary!$B$4 -> 40150 | E9: =Summary!$B$4 -> 40150 | F9: =Summary!$B$4 -> 40150
A10: Capex component | B10: ₹ | C10: =((Summary!B19-(C8*C7))*C6) -> 67468.11294 | D10: =(Summary!C19-(D8*D7))*D6 -> 48558.28433 | E10: =(Summary!D19-(E8*E7))*E6 -> 49392.43046 | F10: =(Summary!E19-(F8*F7))*F6 -> 49000.62744
A11: TCO | B11: ₹/km | C11: =(C10+L22)/C9 -> 4.206526011 | D11: =(D10+L23)/D9 -> 4.430237384 | E11: =(E10+L24)/E9 -> 6.436034605 | F11: =(F10+L25)/F9 -> 5.498103962
A13: Opex / year
A14: Vehicle type | B14: Unit | C14: 1 | D14: =C14+1 -> 2 | E14: 3 | F14: 4 | G14: 5 | H14: 6 | I14: 7 | J14: 8 | K14: 9 | L14: 10 | M14: Total
A15: e-3W | B15: ₹ | C15: =Summary!$B$27/(1+$C$2)^C14 -> 150057.0336 | D15: =Summary!$B$27/(1+$C$2)^D14 -> 136415.4851 | E15: =Summary!$B$27/(1+$C$2)^E14 -> 124014.0774 | F15: =Summary!$B$27/(1+$C$2)^F14 -> 112740.0704 | G15: =Summary!$B$27/(1+$C$2)^G14 -> 102490.973 | H15: =Summary!$B$27/(1+$C$2)^H14 -> 93173.61186 | I15: =Summary!$B$27/(1+$C$2)^I14 -> 84703.28351 | J15: =Summary!$B$27/(1+$C$2)^J14 -> 77002.98501 | K15: =Summary!$B$27/(1+$C$2)^K14 -> 70002.71364 | L15: =Summary!$B$27/(1+$C$2)^L14 -> 63638.83059 | M15: =SUM(C15:L15)/Summary!B3 -> 101423.9064
A16: CNG-3W | B16: ₹ | C16: =Summary!$C$27/(1+$D$2)^C14 -> 191323.1114 | D16: =Summary!$C$27/(1+$D$2)^D14 -> 173930.1013 | E16: =Summary!$C$27/(1+$D$2)^E14 -> 158118.2739 | F16: =Summary!$C$27/(1+$D$2)^F14 -> 143743.8853 | G16: =Summary!$C$27/(1+$D$2)^G14 -> 130676.2594 | H16: =Summary!$C$27/(1+$D$2)^H14 -> 118796.5995 | I16: =Summary!$C$27/(1+$D$2)^I14 -> 107996.9086 | J16: =Summary!$C$27/(1+$D$2)^J14 -> 98179.00782 | K16: =Summary!$C$27/(1+$D$2)^K14 -> 89253.64347 | L16: =Summary!$C$27/(1+$D$2)^L14 -> 81139.67588 | M16: =SUM(C16:L16)/Summary!B3 -> 129315.7467
A17: Petrol-3W | B17: ₹ | C17: =Summary!$D$27/(1+$E$2)^C14 -> 309237.4943 | D17: =Summary!$D$27/(1+$E$2)^D14 -> 281124.9949 | E17: =Summary!$D$27/(1+$E$2)^E14 -> 255568.1771 | F17: =Summary!$D$27/(1+$E$2)^F14 -> 232334.7065 | G17: =Summary!$D$27/(1+$E$2)^G14 -> 211213.3695 | H17: =Summary!$D$27/(1+$E$2)^H14 -> 192012.1541 | I17: =Summary!$D$27/(1+$E$2)^I14 -> 174556.5038 | J17: =Summary!$D$27/(1+$E$2)^J14 -> 158687.7307 | K17: =Summary!$D$27/(1+$E$2)^K14 -> 144261.5734 | L17: =Summary!$D$27/(1+$E$2)^L14 -> 131146.8849 | M17: =SUM(C17:L17)/Summary!B3 -> 209014.3589
A18: Diesel-3W | B18: ₹ | C18: =Summary!$E$27/(1+$F$2)^C14 -> 254102.1475 | D18: =Summary!$E$27/(1+$F$2)^D14 -> 231001.9522 | E18: =Summary!$E$27/(1+$F$2)^E14 -> 210001.7748 | F18: =Summary!$E$27/(1+$F$2)^F14 -> 190910.7043 | G18: =Summary!$E$27/(1+$F$2)^G14 -> 173555.1858 | H18: =Summary!$E$27/(1+$F$2)^H14 -> 157777.4416 | I18: =Summary!$E$27/(1+$F$2)^I14 -> 143434.0378 | J18: =Summary!$E$27/(1+$F$2)^J14 -> 130394.5798 | K18: =Summary!$E$27/(1+$F$2)^K14 -> 118540.5271 | L18: =Summary!$E$27/(1+$F$2)^L14 -> 107764.1156 | M18: =SUM(C18:L18)/Summary!B3 -> 171748.2466
A20: Opex Sum
A21: Vehicle type | B21: Unit | C21: 1 | D21: =C21+1 -> 2 | E21: 3 | F21: 4 | G21: 5 | H21: 6 | I21: 7 | J21: 8 | K21: 9 | L21: 10
A22: e-3W | B22: ₹/km | C22: =(1/C21)*SUM($C$15:C15) -> 150057.0336 | D22: =(1/D21)*SUM($C$15:D15) -> 143236.2594 | E22: =(1/E21)*SUM($C$15:E15) -> 136828.8654 | F22: =(1/F21)*SUM($C$15:F15) -> 130806.6666 | G22: =(1/G21)*SUM($C$15:G15) -> 125143.5279 | H22: =(1/H21)*SUM($C$15:H15) -> 119815.2086 | I22: =(1/I21)*SUM($C$15:I15) -> 114799.2193 | J22: =(1/J21)*SUM($C$15:J15) -> 110074.69 | K22: =(1/K21)*SUM($C$15:K15) -> 105622.2482 | L22: =(1/L21)*SUM($C$15:L15) -> 101423.9064
A23: CNG-3W | B23: ₹/km | C23: =(1/C21)*SUM($C$16:C16) -> 191323.1114 | D23: =(1/D21)*SUM($C$16:D16) -> 182626.6063 | E23: =(1/E21)*SUM($C$16:E16) -> 174457.1622 | F23: =(1/F21)*SUM($C$16:F16) -> 166778.843 | G23: =(1/G21)*SUM($C$16:G16) -> 159558.3263 | H23: =(1/H21)*SUM($C$16:H16) -> 152764.7051 | I23: =(1/I21)*SUM($C$16:I16) -> 146369.3056 | J23: =(1/J21)*SUM($C$16:J16) -> 140345.5184 | K23: =(1/K21)*SUM($C$16:K16) -> 134668.6434 | L23: =(1/L21)*SUM($C$16:L16) -> 129315.7467
A24: Petrol-3W | B24: ₹/km | C24: =(1/C21)*SUM($C$17:C17) -> 309237.4943 | D24: =(1/D21)*SUM($C$17:D17) -> 295181.2446 | E24: =(1/E21)*SUM($C$17:E17) -> 281976.8888 | F24: =(1/F21)*SUM($C$17:F17) -> 269566.3432 | G24: =(1/G21)*SUM($C$17:G17) -> 257895.7485 | H24: =(1/H21)*SUM($C$17:H17) -> 246915.1494 | I24: =(1/I21)*SUM($C$17:I17) -> 236578.2 | J24: =(1/J21)*SUM($C$17:J17) -> 226841.8914 | K24: =(1/K21)*SUM($C$17:K17) -> 217666.3005 | L24: =(1/L21)*SUM($C$17:L17) -> 209014.3589
A25: Diesel-3W | B25: ₹/km | C25: =(1/C21)*SUM($C$18:C18) -> 254102.1475 | D25: =(1/D21)*SUM($C$18:D18) -> 242552.0498 | E25: =(1/E21)*SUM($C$18:E18) -> 231701.9582 | F25: =(1/F21)*SUM($C$18:F18) -> 221504.1447 | G25: =(1/G21)*SUM($C$18:G18) -> 211914.3529 | H25: =(1/H21)*SUM($C$18:H18) -> 202891.5344 | I25: =(1/I21)*SUM($C$18:I18) -> 194397.6063 | J25: =(1/J21)*SUM($C$18:J18) -> 186397.228 | K25: =(1/K21)*SUM($C$18:K18) -> 178857.5945 | L25: =(1/L21)*SUM($C$18:L18) -> 171748.2466
A27: TCO / year
A28: Vehicle type | B28: Unit | C28: 1 | D28: =C28+1 -> 2 | E28: 3 | F28: 4 | G28: 5 | H28: 6 | I28: 7 | J28: 8 | K28: 9 | L28: 10 | M28: Average TCO
A29: PVF | B29: - | C29: =1/(1+$C$2)^C28 -> 0.9090909091 | D29: =1/(1+$C$2)^D28 -> 0.826446281 | E29: 0.7513148009 | F29: 0.6830134554 | G29: 0.6209213231 | H29: 0.5644739301 | I29: 0.5131581182 | J29: 0.4665073802 | K29: 0.4240976184 | L29: 0.3855432894
A30: CRF | B30: - | C30: =($C$2*(1+$C$2)^C28)/((1+$C$2)^C28-1) -> 1.1 | D30: =($C$2*(1+$C$2)^D28)/((1+$C$2)^D28-1) -> 0.5761904762 | E30: 0.4021148036 | F30: 0.3154708037 | G30: 0.2637974808 | H30: 0.2296073804 | I30: 0.2054054997 | J30: 0.1874440176 | K30: 0.1736405391 | L30: 0.1627453949
A31: e-3W | B31: ₹/km | C31: =(((Summary!$B$19-($C$8*C29))*C30)+C22)/($C$9) -> 13.59985725 | D31: =(((Summary!$B$19-($C$8*D29))*D30)+D22)/($C$9) -> 8.8572225 | E31: =(((Summary!$B$19-($C$8*E29))*E30)+E22)/($C$9) -> 7.177990269 | F31: =(((Summary!$B$19-($C$8*F29))*F30)+F22)/($C$9) -> 6.271612969 | G31: =(((Summary!$B$19-($C$8*G29))*G30)+G22)/($C$9) -> 5.679465655 | H31: =(((Summary!$B$19-($C$8*H29))*H30)+H22)/($C$9) -> 5.248282592 | I31: =(((Summary!$B$19-($C$8*I29))*I30)+I22)/($C$9) -> 4.912073771 | J31: =(((Summary!$B$19-($C$8*J29))*J30)+J22)/($C$9) -> 4.637601659 | K31: =(((Summary!$B$19-($C$8*K29))*K30)+K22)/($C$9) -> 4.406204862 | L31: =(((Summary!$B$19-($C$8*L29))*L30)+L22)/($C$9) -> 4.206526011 | M31: =SUM(C31:L31)/$L$28 -> 6.499683754
A32: PVF | B32: - | C32: =1/(1+$D$2)^C28 -> 0.9090909091 | D32: =1/(1+$D$2)^D28 -> 0.826446281 | E32: 0.7513148009 | F32: 0.6830134554 | G32: 0.6209213231 | H32: 0.5644739301 | I32: 0.5131581182 | J32: 0.4665073802 | K32: 0.4240976184 | L32: 0.3855432894
A33: CRF | B33: - | C33: =($D$2*(1+$D$2)^C28)/((1+$D$2)^C28-1) -> 1.1 | D33: =($D$2*(1+$D$2)^D28)/((1+$D$2)^D28-1) -> 0.5761904762 | E33: 0.4021148036 | F33: 0.3154708037 | G33: 0.2637974808 | H33: 0.2296073804 | I33: 0.2054054997 | J33: 0.1874440176 | K33: 0.1736405391 | L33: 0.1627453949
A34: CNG-3W | B34: ₹/km | C34: =(((Summary!$C$19-($D$8*C32))*C33)+C23)/($D$9) -> 12.49458235 | D34: =(((Summary!$C$19-($D$8*D32))*D33)+D23)/($D$9) -> 8.634134187 | E34: =(((Summary!$C$19-($D$8*E32))*E33)+E23)/($D$9) -> 7.219714713 | F34: =(((Summary!$C$19-($D$8*F32))*F33)+F23)/($D$9) -> 6.425740386 | G34: =(((Summary!$C$19-($D$8*G32))*G33)+G23)/($D$9) -> 5.886439663 | H34: =(((Summary!$C$19-($D$8*H32))*H33)+H23)/($D$9) -> 5.479392388 | I34: =(((Summary!$C$19-($D$8*I32))*I33)+I23)/($D$9) -> 5.151745879 | J34: =(((Summary!$C$19-($D$8*J32))*J33)+J23)/($D$9) -> 4.876765905 | K34: =(((Summary!$C$19-($D$8*K32))*K33)+K23)/($D$9) -> 4.639351225 | L34: =(((Summary!$C$19-($D$8*L32))*L33)+L23)/($D$9) -> 4.430237384 | M34: =SUM(C34:L34)/$L$28 -> 6.523810408
A35: PVF | B35: - | C35: =1/(1+$E$2)^C28 -> 0.9090909091 | D35: =1/(1+$E$2)^D28 -> 0.826446281 | E35: 0.7513148009 | F35: 0.6830134554 | G35: 0.6209213231 | H35: 0.5644739301 | I35: 0.5131581182 | J35: 0.4665073802 | K35: 0.4240976184 | L35: 0.3855432894
A36: CRF | B36: - | C36: =($E$2*(1+$E$2)^C28)/((1+$E$2)^C28-1) -> 1.1 | D36: =($E$2*(1+$E$2)^D28)/((1+$E$2)^D28-1) -> 0.5761904762 | E36: 0.4021148036 | F36: 0.3154708037 | G36: 0.2637974808 | H36: 0.2296073804 | I36: 0.2054054997 | J36: 0.1874440176 | K36: 0.1736405391 | L36: 0.1627453949
A37: Petrol-3W | B37: ₹/km | C37: =(((Summary!$D$19-($E$8*C35))*C36)+C24)/($E$9) -> 15.56420584 | D37: =(((Summary!$D$19-($E$8*D35))*D36)+D24)/($E$9) -> 11.50766974 | E37: =(((Summary!$D$19-($E$8*E35))*E36)+E24)/($E$9) -> 9.947045801 | F37: =(((Summary!$D$19-($E$8*F35))*F36)+F24)/($E$9) -> 9.0248539 | G37: =(((Summary!$D$19-($E$8*G35))*G36)+G24)/($E$9) -> 8.368541933 | H37: =(((Summary!$D$19-($E$8*H35))*H36)+H24)/($E$9) -> 7.853125577 | I37: =(((Summary!$D$19-($E$8*I35))*I36)+I24)/($E$9) -> 7.424416351 | J37: =(((Summary!$D$19-($E$8*J35))*J36)+J24)/($E$9) -> 7.054823704 | K37: =(((Summary!$D$19-($E$8*K35))*K36)+K24)/($E$9) -> 6.728618398 | L37: =(((Summary!$D$19-($E$8*L35))*L36)+L24)/($E$9) -> 6.436034605 | M37: =SUM(C37:L37)/$L$28 -> 8.990933585
A38: PVF | B38: - | C38: =1/(1+$F$2)^C28 -> 0.9090909091 | D38: =1/(1+$F$2)^D28 -> 0.826446281 | E38: 0.7513148009 | F38: 0.6830134554 | G38: 0.6209213231 | H38: 0.5644739301 | I38: 0.5131581182 | J38: 0.4665073802 | K38: 0.4240976184 | L38: 0.3855432894
A39: CRF | B39: - | C39: =($F$2*(1+$F$2)^C28)/((1+$F$2)^C28-1) -> 1.1 | D39: =($F$2*(1+$F$2)^D28)/((1+$F$2)^D28-1) -> 0.5761904762 | E39: 0.4021148036 | F39: 0.3154708037 | G39: 0.2637974808 | H39: 0.2296073804 | I39: 0.2054054997 | J39: 0.1874440176 | K39: 0.1736405391 | L39: 0.1627453949
A40: Diesel-3W | B40: ₹/km | C40: =(((Summary!$E$19-($F$8*C38))*C39)+C25)/($F$9) -> 14.12860567 | D40: =(((Summary!$E$19-($F$8*D38))*D39)+D25)/($F$9) -> 10.16389047 | E40: =(((Summary!$E$19-($F$8*E38))*E39)+E25)/($F$9) -> 8.671674032 | F40: =(((Summary!$E$19-($F$8*F38))*F39)+F25)/($F$9) -> 7.80945705 | G40: =(((Summary!$E$19-($F$8*G38))*G39)+G25)/($F$9) -> 7.207871209 | H40: =(((Summary!$E$19-($F$8*H38))*H39)+H25)/($F$9) -> 6.743135583 | I40: =(((Summary!$E$19-($F$8*I38))*I39)+I25)/($F$9) -> 6.361688192 | J40: =(((Summary!$E$19-($F$8*J38))*J39)+J25)/($F$9) -> 6.036339838 | K40: =(((Summary!$E$19-($F$8*K38))*K39)+K25)/($F$9) -> 5.751655453 | L40: =(((Summary!$E$19-($F$8*L38))*L39)+L25)/($F$9) -> 5.498103962 | M40: =SUM(C40:L40)/$L$28 -> 7.837242146

Sheet References (hidden)
B2: Assumption | F2: Source
B3: Life of Vehicle | F3: Assumed
B4: Annual driving distance | F4: Assumed
B5: Total distance travelled | F5: Assumed
B6: LIB cost | F6: https://bnef.turtl.co/story/evo2018?teaser=true | K6: BNEF EV Outlook 2018 ($200/kWh)
B7: Discount rate | F7: Assumed | G7: https://www.goodreturns.in/diesel-price-in-new-delhi.html
B8: Resale value | F8: Assumed
B9: Purchase cost (e-3W) | F9: http://www.mahindraelectric.com/car-price-list/ | K9: (treo SFT) | L9: Excluding FAME subsidy Rs. 61,000 https://www.fame-india.gov.in/ModelUnderFame.aspx
B10: Purchase cost (CNG 3W) | F10: http://www.vicky.in/trucks/bajaj/re-compact-4s/on-road-price-in-delhi/
B11: Purchase cost (Petrol 3W) | F11: Assumed to be same as CNG 3W
B12: Purchase cost (Diesel 3W) | F12: Assumed to be same as CNG 3W
B13: Tax | F13: http://www.vicky.in/trucks/bajaj/re-compact-4s/on-road-price-in-delhi/
B14: Insurance | F14: http://www.vicky.in/trucks/bajaj/re-compact-4s/on-road-price-in-delhi/
B15: Misc. Cost (e-3W) | F15: Based on interview of auto drivers & some dealers (BLR)
B16: Misc. Cost (CNG-3W) | F16: Based on interview of auto drivers & some dealers (BLR)
B17: Misc. Cost (Petrol-3W) | F17: Based on interview of auto drivers & some dealers (BLR)
B18: Misc. Cost (Diesel-3W) | F18: Based on interview of auto drivers & some dealers (BLR)
B19: Fuel cost (e-3W) | F19: http://transport.delhi.gov.in/sites/default/files/All-PDF/Electric%20Policy%202018.pdf
B20: Fuel cost (CNG-3W) | F20: https://www.goodreturns.in/cng-price-in-new-delhi.html
B21: Fuel cost (Petrol-3W) | F21: https://www.iocl.com/Product_PreviousPrice/PetrolPreviousPriceDynamic.aspx
B22: Fuel cost (Diesel-3W) | F22: https://www.iocl.com/Product_PreviousPrice/DieselPreviousPriceDynamic.aspx
B23: Mileage (e-3W) | F23: http://www.mahindraelectric.com/vehicles/treo-electric-auto/ | L23: (Battery capacity: 7.37kWh; Range: 130 km/charge)
B24: Mileage (CNG-3W) | F24: https://www.padaar.com/bajaj-re-compact-4s-petrol-cng-lpg-price-110000-rs-inrfeaturesspecifications/
B25: Mileage (Petrol-3W) | F25: http://www.vicky.in/trucks/bajaj-re-compact-mileage/
B26: Mileage (Diesel-3W) | F26: https://www.padaar.com/bajaj-re-compact-4s-petrol-cng-lpg-price-110000-rs-inrfeaturesspecifications/
B27: Annual Maintenance cost (e-3W) | F27: Assumed 50% less than Petrol variant
B28: Annual Maintenance cost (CNG-3W) | F28: http://delhi.gov.in/DoIT/DoIT_Transport/trrs12.pdf | K28: Page No.11
B29: Annual Maintenance cost (Petrol-3W) | F29: 20% less than CNG 3W (http://delhi.gov.in/DoIT/DoIT_Transport/trrs12.pdf; Page 13)
B30: Annual Maintenance cost (Diesel-3W) | F30: Assumed same as petrol variant
B31: Misc. Cost (e-3W) | F31: https://abcaus.in/irda/third-party-insurance-premium-battery-powered-4000-watts-three-wheeler-ecart-erickshaws.html.
F32: Above cost include Insurance, Road Tax, Permit fees, fitness fees (Annexure 3 of http://delhi.gov.in/DoIT/DoIT_Transport/trrs12.pdf)
B33: Misc. Cost (CNG-3W) | F33: http://delhi.gov.in/DoIT/DoIT_Transport/trrs12.pdf | K33: Page No.11
B34: Misc. Cost (Petrol-3W) | F34: Same as CNG
B35: Misc. Cost (Diesel-3W) | F35: Same as CNG
B36: No. of battery replacements | F36: http://www.mahindraelectric.com/vehicles/treo-electric-auto/
B37: Battery capacity | F37: http://www.mahindraelectric.com/vehicles/treo-electric-auto/
